[Event "*** Titled Tuesday Blitz"]
[Site "Chess.com"]
[Date "2021.02.02"]
[Round "6"]
[White "ChelsieMonica"]
[Black "MikeSailer"]
[Result "0-1"]
[WhiteElo "2380"]
[BlackElo "2201"]
[TimeControl "180+1"]
[EndTime "11:08:53 PST"]
[Termination "MikeSailer won by resignation"]

1. c4 {[%clk 0:02:52.6]} 1... c6 {[%clk 0:02:59.6]} 2. Nf3 {[%clk 0:02:53]} 2...
d5 {[%clk 0:02:59.1]} 3. e3 {[%clk 0:02:53.3]} 3... Nf6 {[%clk 0:02:57.3]} 4. d4
{[%clk 0:02:53.1]} 4... a6 {[%clk 0:02:55.5]} 5. cxd5 {[%clk 0:02:53.1]} 5...
cxd5 {[%clk 0:02:55.2]} 6. Nc3 {[%clk 0:02:54]} 6... Nc6 {[%clk 0:02:55.2]} 7.
Bd3 {[%clk 0:02:34.9]} 7... Bg4 {[%clk 0:02:53.5]} 8. O-O {[%clk 0:02:34.9]}
8... e6 {[%clk 0:02:53.6]} 9. h3 {[%clk 0:02:34.8]} 9... Bh5 {[%clk 0:02:53]}
10. Qb3 {[%clk 0:02:34.3]} 10... Bxf3 {[%clk 0:02:45.1]} 11. gxf3 {[%clk
0:02:35.2]} 11... Bb4 {[%clk 0:02:42.4]} 12. Ne2 {[%clk 0:02:34]} 12... b5
{[%clk 0:02:29.5]} 13. a4 {[%clk 0:02:32.3]} 13... Qa5 {[%clk 0:02:08.3]} 14. e4
{[%clk 0:02:05.5]} 14... O-O {[%clk 0:01:54.7]} 15. Bg5 {[%clk 0:02:03.7]} 15...
dxe4 {[%clk 0:01:45.8]} 16. axb5 {[%clk 0:02:00.9]} 16... exd3 {[%clk
0:01:34.5]} 17. Rxa5 {[%clk 0:02:00.2]} 17... dxe2 {[%clk 0:01:34.4]} 18. bxc6
{[%clk 0:01:31.1]} 18... exf1=Q+ {[%clk 0:01:31.9]} 19. Kxf1 {[%clk 0:01:32]}
19... Bxa5 {[%clk 0:01:30]} 20. Qc4 {[%clk 0:01:25.9]} 20... Nd5 {[%clk
0:01:25.7]} 21. f4 {[%clk 0:01:19.9]} 21... h6 {[%clk 0:01:05.1]} 22. Bh4 {[%clk
0:01:20]} 22... Nxf4 {[%clk 0:01:03.2]} 23. b4 {[%clk 0:01:16.3]} 23... Bc7
{[%clk 0:01:00]} 24. Bg3 {[%clk 0:01:12.9]} 24... Rfc8 {[%clk 0:00:57.5]} 25.
Bxf4 {[%clk 0:01:11.4]} 25... Bxf4 {[%clk 0:00:56.4]} 26. d5 {[%clk 0:01:11.8]}
26... exd5 {[%clk 0:00:53.8]} 27. Qxf4 {[%clk 0:01:10.3]} 27... Rxc6 {[%clk
0:00:52.6]} 28. Qd4 {[%clk 0:01:08.4]} 28... Rd6 {[%clk 0:00:49]} 29. h4 {[%clk
0:01:06.7]} 29... Rb8 {[%clk 0:00:47.9]} 30. h5 {[%clk 0:01:05.3]} 30... Rb5
{[%clk 0:00:46]} 31. Kg2 {[%clk 0:00:57.7]} 31... Rdb6 {[%clk 0:00:37.7]} 32.
Qe5 {[%clk 0:00:51.9]} 32... Rb8 {[%clk 0:00:27.7]} 33. Qd6 {[%clk 0:00:50]}
33... Rxb4 {[%clk 0:00:25.3]} 34. Qxd5 {[%clk 0:00:46.3]} 34... R4b5 {[%clk
0:00:22.8]} 35. Qd6 {[%clk 0:00:45.2]} 35... a5 {[%clk 0:00:22]} 36. Qa6 {[%clk
0:00:45.2]} 36... Rg5+ {[%clk 0:00:14.3]} 37. Kf3 {[%clk 0:00:44]} 37... Rbb5
{[%clk 0:00:13]} 38. Qc8+ {[%clk 0:00:42.6]} 38... Kh7 {[%clk 0:00:13.3]} 39.
Ke2 {[%clk 0:00:39.1]} 39... Rbf5 {[%clk 0:00:13.2]} 40. Qc2 {[%clk 0:00:35]}
40... Rxh5 {[%clk 0:00:13.8]} 41. Kf1 {[%clk 0:00:34.6]} 41... Rg5 {[%clk
0:00:14]} 42. Qc7 {[%clk 0:00:33.4]} 42... h5 {[%clk 0:00:13.5]} 43. Qh2 {[%clk
0:00:31.4]} 43... g6 {[%clk 0:00:12]} 44. Qh4 {[%clk 0:00:31.1]} 44... Rg4
{[%clk 0:00:11.1]} 45. Qe7 {[%clk 0:00:30]} 45... a4 {[%clk 0:00:10.8]} 46. Qf8
{[%clk 0:00:28.7]} 46... h4 {[%clk 0:00:08.5]} 47. Ke2 {[%clk 0:00:27.5]} 47...
h3 {[%clk 0:00:07.8]} 48. f3 {[%clk 0:00:27.6]} 48... Rg2+ {[%clk 0:00:07.5]}
49. Kf1 {[%clk 0:00:26.7]} 49... Rxf3+ {[%clk 0:00:07.2]} 0-1

[Event "*** Titled Tuesday Blitz"]
[Site "Chess.com"]
[Date "2021.02.02"]
[Round "6"]
[White "LisikValera"]
[Black "Vesper2018"]
[Result "1-0"]
[WhiteElo "2490"]
[BlackElo "2596"]
[TimeControl "180+1"]
[EndTime "11:08:55 PST"]
[Termination "LisikValera won by resignation"]

1. d4 {[%clk 0:03:00.9]} 1... Nf6 {[%clk 0:02:59.2]} 2. c4 {[%clk 0:03:00.1]}
2... g6 {[%clk 0:02:59.1]} 3. Nc3 {[%clk 0:02:59.5]} 3... Bg7 {[%clk 0:02:59.2]}
4. e4 {[%clk 0:02:59.1]} 4... d6 {[%clk 0:02:59.3]} 5. Nf3 {[%clk 0:02:59.2]}
5... O-O {[%clk 0:02:59.8]} 6. Be2 {[%clk 0:02:59.7]} 6... e5 {[%clk 0:03:00]}
7. O-O {[%clk 0:03:00.2]} 7... Nc6 {[%clk 0:02:58.8]} 8. d5 {[%clk 0:03:00.5]}
8... Ne7 {[%clk 0:02:58.8]} 9. Ne1 {[%clk 0:03:00.3]} 9... Nd7 {[%clk
0:02:57.5]} 10. f3 {[%clk 0:03:00.2]} 10... f5 {[%clk 0:02:57.1]} 11. g4 {[%clk
0:02:56.8]} 11... Nf6 {[%clk 0:02:44.6]} 12. Nd3 {[%clk 0:02:56.5]} 12... c6
{[%clk 0:02:30.5]} 13. Nf2 {[%clk 0:02:52.7]} 13... h6 {[%clk 0:02:10.9]} 14. h4
{[%clk 0:02:51.9]} 14... Kh8 {[%clk 0:01:51.5]} 15. Kg2 {[%clk 0:02:51]} 15...
b5 {[%clk 0:01:45.4]} 16. b3 {[%clk 0:02:49.7]} 16... b4 {[%clk 0:01:44.8]} 17.
Na4 {[%clk 0:02:49.6]} 17... c5 {[%clk 0:01:39.4]} 18. a3 {[%clk 0:02:49.2]}
18... a5 {[%clk 0:01:38.7]} 19. Bd2 {[%clk 0:02:47.2]} 19... Bd7 {[%clk
0:01:37.1]} 20. Nb2 {[%clk 0:02:38.3]} 20... Kg8 {[%clk 0:01:36.4]} 21. Nbd3
{[%clk 0:02:35]} 21... Qc8 {[%clk 0:01:30.5]} 22. Qc1 {[%clk 0:02:29.6]} 22...
fxg4 {[%clk 0:01:28.7]} 23. fxg4 {[%clk 0:02:28.7]} 23... Nxg4 {[%clk
0:01:24.1]} 24. Bxg4 {[%clk 0:02:24.6]} 24... Bxg4 {[%clk 0:01:24]} 25. Bxh6
{[%clk 0:02:23.8]} 25... Be2 {[%clk 0:01:17.6]} 26. Bxg7 {[%clk 0:02:16.5]}
26... Bxf1+ {[%clk 0:01:10.7]} 27. Qxf1 {[%clk 0:02:15]} 27... Kxg7 {[%clk
0:01:11.2]} 28. Qe2 {[%clk 0:02:09.6]} 28... Rh8 {[%clk 0:01:10.6]} 29. Qf3
{[%clk 0:01:58.1]} 29... Rxh4 {[%clk 0:01:07.5]} 30. Qg3 {[%clk 0:01:56.3]}
30... Rh5 {[%clk 0:00:57.2]} 31. Nh3 {[%clk 0:01:54.8]} 31... a4 {[%clk
0:00:40.6]} 32. Ng5 {[%clk 0:01:42.4]} 32... axb3 {[%clk 0:00:38.4]} 33. Ne6+
{[%clk 0:01:40.9]} 33... Kh7 {[%clk 0:00:37.3]} 34. Rf1 {[%clk 0:01:36.8]} 34...
Qg8 {[%clk 0:00:33.3]} 35. Ng5+ {[%clk 0:01:19.3]} 35... Kh8 {[%clk 0:00:31.8]}
36. Nf7+ {[%clk 0:01:05.2]} 36... Kg7 {[%clk 0:00:31.7]} 37. Nxd6 {[%clk
0:01:05.1]} 37... bxa3 {[%clk 0:00:26.8]} 38. Nxe5 {[%clk 0:00:53]} 38... a2
{[%clk 0:00:24]} 39. Ng4 {[%clk 0:00:33.5]} 39... a1=Q {[%clk 0:00:19.8]} 40.
Rxa1 {[%clk 0:00:32.3]} 40... Rxa1 {[%clk 0:00:19.6]} 41. Qc3+ {[%clk
0:00:32.1]} 41... Kh7 {[%clk 0:00:12.8]} 42. Nf6+ {[%clk 0:00:30.9]} 42... Kh8
{[%clk 0:00:12.1]} 43. Nxg8+ {[%clk 0:00:31]} 43... Kxg8 {[%clk 0:00:12.4]} 44.
Qxa1 {[%clk 0:00:31.1]} 44... Rh4 {[%clk 0:00:05.4]} 45. Qf6 {[%clk 0:00:22.8]}
1-0

[Event "*** Titled Tuesday Blitz"]
[Site "Chess.com"]
[Date "2021.02.02"]
[Round "6"]
[White "losersgame"]
[Black "szefru"]
[Result "0-1"]
[WhiteElo "2366"]
[BlackElo "2217"]
[TimeControl "180+1"]
[EndTime "11:08:56 PST"]
[Termination "szefru won on time"]

1. d4 {[%clk 0:03:00.9]} 1... Nf6 {[%clk 0:02:56.1]} 2. c4 {[%clk 0:03:00.7]}
2... g6 {[%clk 0:02:56.8]} 3. Nc3 {[%clk 0:03:00.4]} 3... Bg7 {[%clk 0:02:57.5]}
4. e4 {[%clk 0:03:00.2]} 4... d6 {[%clk 0:02:58.2]} 5. f3 {[%clk 0:03:00.2]}
5... O-O {[%clk 0:02:58.6]} 6. Be3 {[%clk 0:03:00]} 6... c5 {[%clk 0:02:55.4]}
7. d5 {[%clk 0:02:52.1]} 7... e6 {[%clk 0:02:54.7]} 8. Bd3 {[%clk 0:02:49.6]}
8... exd5 {[%clk 0:02:54.6]} 9. cxd5 {[%clk 0:02:49.8]} 9... Re8 {[%clk
0:02:53.6]} 10. Nge2 {[%clk 0:02:48]} 10... a6 {[%clk 0:02:46.7]} 11. a4 {[%clk
0:02:47.5]} 11... Nbd7 {[%clk 0:02:45.9]} 12. Ng3 {[%clk 0:02:33]} 12... Ne5
{[%clk 0:02:45.5]} 13. Be2 {[%clk 0:02:32.5]} 13... h5 {[%clk 0:02:43.5]} 14.
O-O {[%clk 0:02:31.7]} 14... h4 {[%clk 0:02:41.7]} 15. Nh1 {[%clk 0:02:31.7]}
15... Rb8 {[%clk 0:02:38.8]} 16. Qd2 {[%clk 0:02:09.7]} 16... Bd7 {[%clk
0:02:37]} 17. Rfb1 {[%clk 0:01:59.6]} 17... b5 {[%clk 0:02:36.3]} 18. axb5
{[%clk 0:01:59.6]} 18... axb5 {[%clk 0:02:37.2]} 19. b4 {[%clk 0:01:59.5]} 19...
c4 {[%clk 0:02:33.2]} 20. Nf2 {[%clk 0:01:58]} 20... Ra8 {[%clk 0:02:16.8]} 21.
Bd4 {[%clk 0:01:14.8]} 21... Qe7 {[%clk 0:01:51.7]} 22. Ra5 {[%clk 0:01:07.3]}
22... Reb8 {[%clk 0:01:15.9]} 23. Rba1 {[%clk 0:01:06]} 23... Rxa5 {[%clk
0:01:13.1]} 24. Rxa5 {[%clk 0:01:06.9]} 24... Kh7 {[%clk 0:01:02.4]} 25. h3
{[%clk 0:00:36.7]} 25... Be8 {[%clk 0:00:37.9]} 26. f4 {[%clk 0:00:33.6]} 26...
Ned7 {[%clk 0:00:36.8]} 27. Bf3 {[%clk 0:00:21.4]} 27... Nh5 {[%clk 0:00:19.5]}
28. Bxh5 {[%clk 0:00:20]} 28... gxh5 {[%clk 0:00:20.4]} 29. Bxg7 {[%clk
0:00:19.6]} 29... Kxg7 {[%clk 0:00:20.1]} 30. Ra7 {[%clk 0:00:17.1]} 30... Qf6
{[%clk 0:00:19.6]} 31. Qe3 {[%clk 0:00:13.1]} 31... Nb6 {[%clk 0:00:19]} 32. e5
{[%clk 0:00:12.5]} 32... dxe5 {[%clk 0:00:19.5]} 33. fxe5 {[%clk 0:00:12.8]}
33... Qg6 {[%clk 0:00:20.2]} 34. Nfe4 {[%clk 0:00:09.9]} 34... Rd8 {[%clk
0:00:18.1]} 35. Nf6 {[%clk 0:00:09.7]} 35... Nxd5 {[%clk 0:00:16.8]} 36. Ncxd5
{[%clk 0:00:09.4]} 36... Bc6 {[%clk 0:00:16.6]} 37. Nf4 {[%clk 0:00:07.3]} 37...
Rd1+ {[%clk 0:00:15.7]} 38. Kh2 {[%clk 0:00:07.2]} 38... Qb1 {[%clk 0:00:16.2]}
39. N4xh5+ {[%clk 0:00:06.8]} 39... Kg6 {[%clk 0:00:14.9]} 40. Qe4+ {[%clk
0:00:01.9]} 40... Bxe4 {[%clk 0:00:12.4]} 0-1

[Event "*** Titled Tuesday Blitz"]
[Site "Chess.com"]
[Date "2021.02.02"]
[Round "6"]
[White "floplover"]
[Black "bsnsun"]
[Result "1-0"]
[WhiteElo "2325"]
[BlackElo "2454"]
[TimeControl "180+1"]
[EndTime "11:08:57 PST"]
[Termination "floplover won by resignation"]

1. d4 {[%clk 0:03:00.9]} 1... Nf6 {[%clk 0:02:58.5]} 2. c4 {[%clk 0:03:00.9]}
2... e6 {[%clk 0:02:59.1]} 3. Nc3 {[%clk 0:03:01]} 3... d5 {[%clk 0:02:59.7]} 4.
Nf3 {[%clk 0:03:00.4]} 4... dxc4 {[%clk 0:02:59.2]} 5. e4 {[%clk 0:02:56.3]}
5... Bb4 {[%clk 0:02:58.6]} 6. Bg5 {[%clk 0:02:55.5]} 6... h6 {[%clk 0:02:51.4]}
7. Bxf6 {[%clk 0:02:51.9]} 7... Qxf6 {[%clk 0:02:50.3]} 8. Bxc4 {[%clk
0:02:52.5]} 8... c5 {[%clk 0:02:48.6]} 9. O-O {[%clk 0:02:50.5]} 9... cxd4
{[%clk 0:02:47.6]} 10. Qxd4 {[%clk 0:02:45.6]} 10... Qxd4 {[%clk 0:02:47.2]} 11.
Nxd4 {[%clk 0:02:46.5]} 11... O-O {[%clk 0:02:47.2]} 12. Rac1 {[%clk 0:02:24.7]}
12... e5 {[%clk 0:02:42.3]} 13. Ndb5 {[%clk 0:02:12.5]} 13... Nc6 {[%clk
0:02:42]} 14. Nd5 {[%clk 0:02:05.7]} 14... Ba5 {[%clk 0:02:41.2]} 15. Nd6 {[%clk
0:01:44.7]} 15... Be6 {[%clk 0:02:31.9]} 16. Nxb7 {[%clk 0:01:39.8]} 16... Bd2
{[%clk 0:01:51]} 17. Rc2 {[%clk 0:01:35.7]} 17... Bg5 {[%clk 0:01:50.9]} 18. Nc7
{[%clk 0:01:13.1]} 18... Nd4 {[%clk 0:01:45.2]} 19. Nxe6 {[%clk 0:00:48.4]}
19... fxe6 {[%clk 0:01:42.2]} 20. Rc3 {[%clk 0:00:48.8]} 20... Rab8 {[%clk
0:01:39.8]} 21. Nc5 {[%clk 0:00:45.9]} 21... Kf7 {[%clk 0:01:28.9]} 22. b3
{[%clk 0:00:43.7]} 22... Ke7 {[%clk 0:01:27.1]} 23. g3 {[%clk 0:00:41.5]} 23...
Rbc8 {[%clk 0:01:19.4]} 24. Na4 {[%clk 0:00:36]} 24... Nf3+ {[%clk 0:01:12.3]}
25. Kg2 {[%clk 0:00:36.5]} 25... Nd2 {[%clk 0:01:10.7]} 26. Re1 {[%clk
0:00:33.2]} 26... Nf3 {[%clk 0:01:08.5]} 27. Rxf3 {[%clk 0:00:32.1]} 27... Rfd8
{[%clk 0:01:06.9]} 28. h4 {[%clk 0:00:31.5]} 28... Bd2 {[%clk 0:01:06.4]} 29.
Re2 {[%clk 0:00:32.1]} 29... Ba5 {[%clk 0:01:06.7]} 30. Rd3 {[%clk 0:00:31.5]}
30... Rxd3 {[%clk 0:01:05.2]} 31. Bxd3 {[%clk 0:00:32.4]} 31... Rc7 {[%clk
0:01:05.7]} 32. Bc4 {[%clk 0:00:32.6]} 32... Bb4 {[%clk 0:01:05.5]} 33. Nb2
{[%clk 0:00:32.5]} 33... Ba3 {[%clk 0:01:05.9]} 34. Nd3 {[%clk 0:00:32.9]} 34...
Bd6 {[%clk 0:01:05.5]} 35. f4 {[%clk 0:00:33.5]} 35... exf4 {[%clk 0:01:01.5]}
36. gxf4 {[%clk 0:00:34.4]} 36... g5 {[%clk 0:01:01.8]} 37. e5 {[%clk
0:00:34.1]} 37... Ba3 {[%clk 0:01:01.4]} 38. hxg5 {[%clk 0:00:34.4]} 38... hxg5
{[%clk 0:01:02.1]} 39. fxg5 {[%clk 0:00:34.9]} 39... Rc8 {[%clk 0:01:02.5]} 40.
Rf2 {[%clk 0:00:34.9]} 40... Rg8 {[%clk 0:01:02.4]} 41. Rf6 {[%clk 0:00:35]}
41... Rxg5+ {[%clk 0:01:02.3]} 42. Kf3 {[%clk 0:00:35.6]} 42... Rg1 {[%clk
0:00:56.4]} 43. Rxe6+ {[%clk 0:00:36]} 43... Kd7 {[%clk 0:00:57.1]} 44. Ra6
{[%clk 0:00:35.3]} 44... Rf1+ {[%clk 0:00:57.4]} 45. Ke2 {[%clk 0:00:35]} 45...
Ra1 {[%clk 0:00:56.9]} 46. Rxa7+ {[%clk 0:00:34.9]} 46... Kc6 {[%clk 0:00:56.5]}
47. Rxa3 {[%clk 0:00:35.8]} 47... Kb6 {[%clk 0:00:54.8]} 48. Ra6+ {[%clk
0:00:36]} 48... Kb7 {[%clk 0:00:54.2]} 49. e6 {[%clk 0:00:36.6]} 49... Rh1
{[%clk 0:00:53.3]} 50. e7 {[%clk 0:00:36.3]} 50... Rh2+ {[%clk 0:00:53.9]} 51.
Ke3 {[%clk 0:00:35.9]} 51... Rh3+ {[%clk 0:00:54.5]} 52. Kd4 {[%clk 0:00:36.2]}
52... Rh4+ {[%clk 0:00:55]} 53. Kc3 {[%clk 0:00:36.2]} 53... Rh8 {[%clk
0:00:55.6]} 54. Re6 {[%clk 0:00:33.7]} 54... Re8 {[%clk 0:00:55.7]} 55. Bb5
{[%clk 0:00:33.9]} 55... Rc8+ {[%clk 0:00:55.8]} 56. Rc6 {[%clk 0:00:30.5]}
56... Re8 {[%clk 0:00:53.3]} 57. Rc7+ {[%clk 0:00:30.6]} 57... Kxc7 {[%clk
0:00:53.2]} 58. Bxe8 {[%clk 0:00:31.5]} 58... Kd6 {[%clk 0:00:54.1]} 59. Bc6
{[%clk 0:00:29.1]} 59... Kxe7 {[%clk 0:00:47.3]} 60. Kc4 {[%clk 0:00:29.2]}
60... Kd6 {[%clk 0:00:47.5]} 61. Kb5 {[%clk 0:00:29.5]} 61... Kc7 {[%clk
0:00:47.9]} 62. a4 {[%clk 0:00:29.2]} 1-0

[Event "*** Titled Tuesday Blitz"]
[Site "Chess.com"]
[Date "2021.02.02"]
[Round "6"]
[White "imdvb6307"]
[Black "mirochka"]
[Result "1-0"]
[WhiteElo "2378"]
[BlackElo "2207"]
[TimeControl "180+1"]
[EndTime "11:08:57 PST"]
[Termination "imdvb6307 won by checkmate"]

1. c4 {[%clk 0:03:00.9]} 1... Nf6 {[%clk 0:02:59.2]} 2. Nc3 {[%clk 0:03:00]}
2... e6 {[%clk 0:02:56.1]} 3. e4 {[%clk 0:02:59.6]} 3... c5 {[%clk 0:02:55.1]}
4. Nf3 {[%clk 0:02:58.8]} 4... Nc6 {[%clk 0:02:53.7]} 5. Be2 {[%clk 0:02:58.9]}
5... e5 {[%clk 0:02:18]} 6. O-O {[%clk 0:02:52.2]} 6... d6 {[%clk 0:02:16.8]} 7.
d3 {[%clk 0:02:51.3]} 7... g6 {[%clk 0:02:10.9]} 8. Ne1 {[%clk 0:02:48.6]} 8...
Bg7 {[%clk 0:02:09.5]} 9. Nc2 {[%clk 0:02:45.8]} 9... O-O {[%clk 0:02:07.6]} 10.
f4 {[%clk 0:02:43.4]} 10... Nd4 {[%clk 0:01:48.7]} 11. Nxd4 {[%clk 0:02:12.1]}
11... exd4 {[%clk 0:01:38.4]} 12. Nb1 {[%clk 0:01:59.4]} 12... Rb8 {[%clk
0:01:29.8]} 13. a4 {[%clk 0:01:52.2]} 13... b6 {[%clk 0:01:28.3]} 14. g4 {[%clk
0:01:51.7]} 14... a6 {[%clk 0:01:22]} 15. Na3 {[%clk 0:01:47.9]} 15... Bd7
{[%clk 0:01:19.6]} 16. Rb1 {[%clk 0:01:46]} 16... Qc8 {[%clk 0:01:18.9]} 17. h3
{[%clk 0:01:44.7]} 17... h5 {[%clk 0:01:17]} 18. g5 {[%clk 0:01:44.5]} 18... Ne8
{[%clk 0:01:09.9]} 19. h4 {[%clk 0:01:26.4]} 19... Nc7 {[%clk 0:01:08.5]} 20. b3
{[%clk 0:01:10.5]} 20... b5 {[%clk 0:01:07.5]} 21. axb5 {[%clk 0:01:04.6]} 21...
axb5 {[%clk 0:01:07.2]} 22. Bxh5 {[%clk 0:01:03.6]} 22... gxh5 {[%clk
0:01:05.1]} 23. f5 {[%clk 0:01:01.4]} 23... Be5 {[%clk 0:00:55.1]} 24. Qxh5
{[%clk 0:01:00.1]} 24... Ne8 {[%clk 0:00:32.2]} 25. Rf2 {[%clk 0:00:40.2]} 25...
Ng7 {[%clk 0:00:26.4]} 26. Qh6 {[%clk 0:00:39.9]} 26... Nxf5 {[%clk 0:00:24.2]}
27. exf5 {[%clk 0:00:27.4]} 27... Bxf5 {[%clk 0:00:23.6]} 28. Bf4 {[%clk
0:00:16.8]} 28... Bxf4 {[%clk 0:00:20.9]} 29. Rxf4 {[%clk 0:00:16.2]} 29... Bxd3
{[%clk 0:00:19.7]} 30. Rd1 {[%clk 0:00:15.7]} 30... Bg6 {[%clk 0:00:12.1]} 31.
h5 {[%clk 0:00:14.7]} 31... Qh3 {[%clk 0:00:12.6]} 32. hxg6 {[%clk 0:00:12.9]}
32... Qg3+ {[%clk 0:00:08.8]} 33. Kh1 {[%clk 0:00:12.3]} 33... fxg6 {[%clk
0:00:08.6]} 34. Rf6 {[%clk 0:00:10.7]} 34... Rxf6 {[%clk 0:00:05.7]} 35. gxf6
{[%clk 0:00:10.8]} 35... Qf3+ {[%clk 0:00:05.7]} 36. Kh2 {[%clk 0:00:10.7]}
36... Qe2+ {[%clk 0:00:05.7]} 37. Kh3 {[%clk 0:00:10.2]} 37... Qf3+ {[%clk
0:00:05.5]} 38. Kh2 {[%clk 0:00:10.2]} 38... Qe2+ {[%clk 0:00:05.3]} 39. Kg3
{[%clk 0:00:09.7]} 39... Qxd1 {[%clk 0:00:03.1]} 40. Qg7# {[%clk 0:00:09.1]} 1-0

[Event "*** Titled Tuesday Blitz"]
[Site "Chess.com"]
[Date "2021.02.02"]
[Round "6"]
[White "Michaelson_11"]
[Black "eldur16"]
[Result "1-0"]
[WhiteElo "2300"]
[BlackElo "2519"]
[TimeControl "180+1"]
[EndTime "11:09:01 PST"]
[Termination "Michaelson_11 won by resignation"]

1. e4 {[%clk 0:03:00.9]} 1... Nf6 {[%clk 0:02:59.1]} 2. e5 {[%clk 0:02:58.7]}
2... Nd5 {[%clk 0:02:59.1]} 3. d4 {[%clk 0:02:59.6]} 3... d6 {[%clk 0:02:59.2]}
4. c4 {[%clk 0:02:59.9]} 4... Nb6 {[%clk 0:02:58.9]} 5. exd6 {[%clk 0:02:58.8]}
5... cxd6 {[%clk 0:02:58.5]} 6. Nc3 {[%clk 0:02:58.7]} 6... g6 {[%clk
0:02:58.3]} 7. Be3 {[%clk 0:02:52.2]} 7... Bg7 {[%clk 0:02:58.1]} 8. Rc1 {[%clk
0:02:51.1]} 8... O-O {[%clk 0:02:57.7]} 9. b3 {[%clk 0:02:50.3]} 9... e5 {[%clk
0:02:53]} 10. d5 {[%clk 0:02:44]} 10... a6 {[%clk 0:02:35]} 11. Be2 {[%clk
0:02:41.6]} 11... N6d7 {[%clk 0:02:34.3]} 12. f3 {[%clk 0:02:35.6]} 12... f5
{[%clk 0:02:32.9]} 13. Nh3 {[%clk 0:02:31.2]} 13... h6 {[%clk 0:02:27.9]} 14.
O-O {[%clk 0:02:29.7]} 14... b6 {[%clk 0:02:25.4]} 15. f4 {[%clk 0:02:25]} 15...
e4 {[%clk 0:02:12.6]} 16. Bd4 {[%clk 0:02:23.9]} 16... Nf6 {[%clk 0:02:07.4]}
17. Nf2 {[%clk 0:02:17.4]} 17... Nbd7 {[%clk 0:02:06.7]} 18. Qd2 {[%clk
0:02:14.8]} 18... Rb8 {[%clk 0:02:01.4]} 19. Qe3 {[%clk 0:02:12]} 19... h5
{[%clk 0:01:56.8]} 20. Rfd1 {[%clk 0:02:02.5]} 20... Qe7 {[%clk 0:01:49.1]} 21.
Qg3 {[%clk 0:01:55.2]} 21... Ng4 {[%clk 0:01:42.5]} 22. h3 {[%clk 0:01:53.9]}
22... Bxd4 {[%clk 0:01:39.7]} 23. Rxd4 {[%clk 0:01:50.5]} 23... h4 {[%clk
0:01:34.7]} 24. Rxe4 {[%clk 0:01:24.5]} 24... Qg7 {[%clk 0:00:44.4]} 25. Qxh4
{[%clk 0:01:13.6]} 25... Nxf2 {[%clk 0:00:41.5]} 26. Re7 {[%clk 0:01:10]} 26...
Rf7 {[%clk 0:00:40.6]} 27. Re8+ {[%clk 0:00:58.5]} 27... Nf8 {[%clk 0:00:38.6]}
28. Kxf2 {[%clk 0:00:57.9]} 28... Qd4+ {[%clk 0:00:33.9]} 29. Kf1 {[%clk
0:00:51.3]} 29... Kg7 {[%clk 0:00:28.8]} 30. Qf2 {[%clk 0:00:39.6]} 30... Qxf2+
{[%clk 0:00:26.8]} 31. Kxf2 {[%clk 0:00:40.5]} 31... Nd7 {[%clk 0:00:25.9]} 32.
Bf3 {[%clk 0:00:36]} 32... Bb7 {[%clk 0:00:25.7]} 33. Rxb8 {[%clk 0:00:34]}
33... Nxb8 {[%clk 0:00:25]} 34. Re1 {[%clk 0:00:33.6]} 34... Nd7 {[%clk
0:00:23.2]} 35. Re6 {[%clk 0:00:31.9]} 35... b5 {[%clk 0:00:12.3]} 36. Rxd6
{[%clk 0:00:30.4]} 36... bxc4 {[%clk 0:00:10.4]} 37. bxc4 {[%clk 0:00:31.3]}
37... Nc5 {[%clk 0:00:10.6]} 38. Ne2 {[%clk 0:00:29]} 38... Rc7 {[%clk
0:00:10.2]} 39. Nd4 {[%clk 0:00:28]} 39... Bc8 {[%clk 0:00:10.2]} 40. Rc6 {[%clk
0:00:23.4]} 40... Rxc6 {[%clk 0:00:09.4]} 41. Nxc6 {[%clk 0:00:23.6]} 41... Kf7
{[%clk 0:00:09.1]} 42. Ke3 {[%clk 0:00:23.4]} 42... Kf6 {[%clk 0:00:08.8]} 43.
Kd4 {[%clk 0:00:23.3]} 43... Nd7 {[%clk 0:00:07.9]} 44. Ne5 {[%clk 0:00:22.3]}
44... Nf8 {[%clk 0:00:03.7]} 45. c5 {[%clk 0:00:22.2]} 1-0

[Event "*** Titled Tuesday Blitz"]
[Site "Chess.com"]
[Date "2021.02.02"]
[Round "6"]
[White "CSB7"]
[Black "guillembaches"]
[Result "0-1"]
[WhiteElo "2578"]
[BlackElo "2472"]
[TimeControl "180+1"]
[EndTime "11:09:01 PST"]
[Termination "guillembaches won on time"]

1. e4 {[%clk 0:03:00.9]} 1... c5 {[%clk 0:03:00]} 2. Nf3 {[%clk 0:02:59.9]} 2...
d6 {[%clk 0:03:00.3]} 3. Bc4 {[%clk 0:02:59.3]} 3... Nf6 {[%clk 0:02:59.2]} 4.
Qe2 {[%clk 0:02:59.6]} 4... e6 {[%clk 0:02:57.8]} 5. c3 {[%clk 0:02:59]} 5...
Be7 {[%clk 0:02:56.9]} 6. O-O {[%clk 0:02:58.3]} 6... O-O {[%clk 0:02:56.7]} 7.
Bb3 {[%clk 0:02:58.7]} 7... b6 {[%clk 0:02:48.6]} 8. Rd1 {[%clk 0:02:26.6]} 8...
Qc7 {[%clk 0:02:27.7]} 9. d4 {[%clk 0:02:19.9]} 9... cxd4 {[%clk 0:02:24.9]} 10.
cxd4 {[%clk 0:02:19.5]} 10... Ba6 {[%clk 0:02:24.6]} 11. Qe1 {[%clk 0:02:16.9]}
11... d5 {[%clk 0:02:19.5]} 12. e5 {[%clk 0:02:01.7]} 12... Ne4 {[%clk
0:02:19.5]} 13. Nbd2 {[%clk 0:02:00.1]} 13... Bd3 {[%clk 0:02:07.7]} 14. Nf1
{[%clk 0:01:55]} 14... Bc2 {[%clk 0:01:59.4]} 15. Bxc2 {[%clk 0:01:50.9]} 15...
Qxc2 {[%clk 0:01:59.4]} 16. Ne3 {[%clk 0:01:42.4]} 16... Qc7 {[%clk 0:01:48.3]}
17. Nd2 {[%clk 0:01:41.9]} 17... Bb4 {[%clk 0:01:24.6]} 18. f3 {[%clk 0:01:24]}
18... Nxd2 {[%clk 0:01:22.1]} 19. Bxd2 {[%clk 0:01:24.9]} 19... Bxd2 {[%clk
0:01:21.4]} 20. Qxd2 {[%clk 0:01:25.8]} 20... Nd7 {[%clk 0:01:12.3]} 21. Rac1
{[%clk 0:01:17.4]} 21... Qb7 {[%clk 0:01:12.3]} 22. h4 {[%clk 0:01:17.5]} 22...
Rac8 {[%clk 0:01:09.5]} 23. h5 {[%clk 0:01:13.7]} 23... f5 {[%clk 0:01:06]} 24.
Qb4 {[%clk 0:00:53.4]} 24... Rxc1 {[%clk 0:00:58.3]} 25. Rxc1 {[%clk 0:00:53.5]}
25... Rc8 {[%clk 0:00:58.4]} 26. Rc3 {[%clk 0:00:45.3]} 26... Rxc3 {[%clk
0:00:52.3]} 27. bxc3 {[%clk 0:00:46.2]} 27... Nf8 {[%clk 0:00:50.5]} 28. c4
{[%clk 0:00:42.9]} 28... dxc4 {[%clk 0:00:31.6]} 29. Qxc4 {[%clk 0:00:43.8]}
29... b5 {[%clk 0:00:27.2]} 30. Qb3 {[%clk 0:00:40.9]} 30... f4 {[%clk
0:00:25.5]} 31. Nf5 {[%clk 0:00:28.9]} 31... Qb6 {[%clk 0:00:20.7]} 32. Kh2
{[%clk 0:00:18]} 32... a5 {[%clk 0:00:18.8]} 33. a3 {[%clk 0:00:09.6]} 33... a4
{[%clk 0:00:18.3]} 34. Qa2 {[%clk 0:00:09.1]} 34... b4 {[%clk 0:00:15.8]} 35.
axb4 {[%clk 0:00:06.7]} 35... Qxb4 {[%clk 0:00:15.8]} 36. Nd6 {[%clk 0:00:04.3]}
36... Qxd4 {[%clk 0:00:15.1]} 37. Qc2 {[%clk 0:00:02.1]} 37... Qxe5 {[%clk
0:00:14.2]} 38. Qc7 {[%clk 0:00:02.6]} 38... Qxh5+ {[%clk 0:00:13.2]} 39. Kg1
{[%clk 0:00:03.1]} 39... h6 {[%clk 0:00:12.6]} 40. Qa7 {[%clk 0:00:02.4]} 40...
Qd5 {[%clk 0:00:11.4]} 0-1